Workbook

Sheet Instructions
B2: HOW TO USE THE DYNAMIC TOTAL COST OF OWNERSHIP DASHBOARD
B4: All cells highlighted Green are Input cells. Values can only be edited in these cells to observe the dynamic changes in the dashboard on the right.
B6: All cells highlighted Gray are Fixed cells. These values cannot be edited.
B9: CELL NAME | E9: FUNCTION | F9: ACTION REQUIRED
B10: Vehicle Holding Period (Year) | E10: Editable | F10: Use the drop down menu on Cell C5 to choose the Vehicle holding period from 1 to 10 years
B11: Daily Distance Travelled (km) | E11: Editable | F11: Use the arrows on the right to increase/decrease to input Daily Distance Travelled in km
B12: Daily Distance Travelled (mi) | E12: Fixed
B13: Annual Distance Travelled (km) | E13: Fixed
B14: Annual Distance Travelled (mi) | E14: Fixed
B16: Vehicle Purchase Cost | E16: Editable | F16: Add number values to input the purchase cost of a 2-Wheeler
B17: Tax | E17: Editable | F17: Add number values to input Tax levied on the 2-Wheeler
B18: Annual Insurance Cost | E18: Editable | F18: Add number values to input Annual Insurance cost of the 2-Wheeler
B19: Financial Incentive | E19: Editable | F19: Add number values to input Total incentives including FAME subsidy & other miscellaneous incentives
B21: Discount Rate | E21: Editable | F21: Add percentage values to input the present value of future cash flows at the end of holding period
B22: Resale Rate | E22: Editable | F22: Add percentage values to input the resale value of the 2-Wheeler at the end of holding period
B24: Terms of Payment | E24: Editable | F24: Add number values to input the Total number of years of loan repayment
B25: Interest Rate | E25: Editable | F25: Add percentage values to input prevailing interest on 2-Wheeler Loans
B26: Equity | E26: Editable | F26: Add percentage values to input initial equity payment made for the purchase of the 2-Wheeler
B27: Monthly EMI | E27: Fixed
B28: Charging Infrastructure Cost | E28: Editable | F28: Add number values to input the Total cost of Charging Infrastructure
B30: Staff cost per Month | E30: Editable | F30: Add number values to input Total Staff cost incurred in a month
B31: Lithium-Ion Battery Cost | E31: Editable | F31: Add number values to input prevailing cost of Li-Ion battery in USD per kWh
B33: Fuel Cost | E33: Editable | F33: Add number values to input Total cost per unit of Fuel (in associated fuel units)
B34: Capacity of Battery | E34: Editable | F34: Add number values to input capacity of battery for Electric 2-Wheeler in kWh
B35: Number of Battery Replacements | E35: Editable | F35: Add number values to input total number of battery replacements for Electric 2-Wheeler
B36: Mileage | E36: Editable | F36: Add number values to input mileage of different models of 2-Wheelers
B37: Annual Maintenance Cost | E37: Editable | F37: Add number values to input the Annual Maintenance cost of a 2-Wheeler
B40: NOTES
B42: 1. For more details regarding Methodology and TCO calculations, please refer to the research paper. Total Cost of Ownership Analysis of the Impact of Vehicle Usage on the Economic Viability of Electric Vehicles in India, P. Kumar and S. Chakrabarty Transport. Res. Rec., 2020 (1-10)

Sheet 2-Wheelers TCO Dashboard
AN2: Dynamic | AO2: TCO | AR2: e-2W (VRLA) | AS2: e-2W (LIB_SB) | AT2: e-2W (LIB_BB) | AU2: Petrol-2W
AN3: e-2W (VRLA) | AO3: =VLOOKUP($C$5,$AQ$2:$AU$12,2,0) -> 1.512333468 | AQ3: 1 | AR3: =IF($C$5=AQ3,AR20:AU20,) -> 0
AN4: e-2W (LIB_SB) | AO4: =VLOOKUP($C$5,$AQ$2:$AU$12,3,0) -> 1.208879915 | AQ4: 2 | AR4: =IF($C$5=AQ4,AR21:AU21,) -> 0
B5: Vehicle Holding Period (Year) | C5: 5 | D5: Use Drop down to choose Holding Period | AN5: e-2W (LIB_BB) | AO5: =VLOOKUP($C$5,$AQ$2:$AU$12,4,0) -> 1.863416698 | AQ5: 3 | AR5: =IF($C$5=AQ5,AR22:AU22,) -> 0
AN6: Petrol-2W | AO6: =VLOOKUP($C$5,$AQ$2:$AU$12,5,0) -> 2.870601616 | AQ6: 4 | AR6: =IF($C$5=AQ6,AR23:AU23,) -> 0
B7: Daily Distance Travelled (km) | C7: 80 | E7: (Use Arrows to input Distance) | AQ7: 5 | AR7: =IF($C$5=AQ7,AR24:AU24,) -> 1.512333468 | AS7: 1.208879915 | AT7: 1.863416698 | AU7: 2.870601616
B8: Daily Distance Travelled (mi) | C8: =C7*0.621371 -> 49.70968 | AN8: Year 10 | AO8: TCO | AQ8: 6 | AR8: =IF($C$5=AQ8,AR25:AU25,) -> 0
AN9: e-2W (VRLA) | AO9: =AR29 -> 1.093033189 | AQ9: 7 | AR9: =IF($C$5=AQ9,AR26:AU26,) -> 0
B10: Annual Distance Travelled (km) | C10: =C7*365 -> 29200 | AN10: e-2W (LIB_SB) | AO10: =AS29 -> 0.815162139 | AQ10: 8 | AR10: =IF($C$5=AQ10,AR27:AU27,) -> 0
B11: Annual Distance Travelled (mi) | C11: =C8*365 -> 18144.0332 | AN11: e-2W (LIB_BB) | AO11: =AT29 -> 1.248826875 | AQ11: 9 | AR11: =IF($C$5=AQ11,AR28:AU28,) -> 0
AN12: Petrol-2W | AO12: =AU29 -> 2.188761513 | AQ12: 10 | AR12: =IF($C$5=AQ12,AR29:AU29,) -> 0
C15: INR
B19: MODEL | C19: e-2W (VRLA) | D19: e-2W (LIB_SB) | E19: e-2W (LIB_BB) | F19: Petrol-2W | AQ19: Operational Years | AR19: e-2W (VRLA) | AS19: e-2W (LIB_SB) | AT19: e-2W (LIB_BB) | AU19: Petrol-2W
B20: =VLOOKUP($C$15,Currency!B17:C19,2,0) -> Vehicle Purchase Cost (₹) | C20: 59889 | D20: 81998 | E20: 142190 | F20: 66271 | AQ20: Year 1 | AR20: =TCO_1!C31 -> 3.93135673 | AS20: =TCO_1!C34 -> 4.141096031 | AT20: =TCO_1!C37 -> 6.629503022 | AU20: =TCO_1!C40 -> 5.641368274
B21: =VLOOKUP($C$15,Currency!B21:C23,2,0) -> Tax (₹) | C21: 4192 | D21: 4549 | E21: 9055 | F21: 4638 | AQ21: Year 2 | AR21: =TCO_1!D31 -> 2.469909964 | AS21: =TCO_1!D34 -> 2.321014884 | AT21: =TCO_1!D37 -> 3.660342787 | AU21: =TCO_1!D40 -> 4.052929572
B22: =VLOOKUP($C$15,Currency!B25:C27,2,0) -> Insurance cost (₹) | C22: 1593 | D22: 1680 | E22: 2505 | F22: 4418 | AQ22: Year 3 | AR22: =TCO_1!E31 -> 1.958845612 | AS22: =TCO_1!E34 -> 1.708282205 | AT22: =TCO_1!E37 -> 2.665889808 | AU22: =TCO_1!E40 -> 3.45566769
B23: =VLOOKUP($C$15,Currency!B29:C31,2,0) -> Financial Incentive (₹) | C23: 0 | D23: 0 | E23: 0 | AQ23: Year 4 | AR23: =TCO_1!F31 -> 1.687100085 | AS23: =TCO_1!F34 -> 1.397916296 | AT23: =TCO_1!F37 -> 2.165629232 | AU23: =TCO_1!F40 -> 3.110917715
AQ24: Year 5 | AR24: =TCO_1!G31 -> 1.512333468 | AS24: =TCO_1!G34 -> 1.208879915 | AT24: =TCO_1!G37 -> 1.863416698 | AU24: =TCO_1!G40 -> 2.870601616
B25: Discount Rate (%) | C25: 0.1 | D25: 0.1 | E25: 0.1 | F25: 0.1 | AQ25: Year 6 | AR25: =TCO_1!H31 -> 1.387002677 | AS25: =TCO_1!H34 -> 1.08079622 | AT25: =TCO_1!H37 -> 1.66050588 | AU25: =TCO_1!H40 -> 2.685098562
B26: Resale Rate (%) | C26: 0.1 | D26: 0.15 | E26: 0.2 | F26: 0.1 | AQ26: Year 7 | AR26: =TCO_1!I31 -> 1.290656888 | AS26: =TCO_1!I34 -> 0.9877651094 | AT26: =TCO_1!I37 -> 1.514552214 | AU26: =TCO_1!I40 -> 2.532938655
AQ27: Year 8 | AR27: =TCO_1!J31 -> 1.213010806 | AS27: =TCO_1!J34 -> 0.9168171288 | AT27: =TCO_1!J37 -> 1.40436366 | AU27: =TCO_1!J40 -> 2.403224761
B28: =VLOOKUP($C$15,Currency!B45:C47,2,0) -> Financing Component (₹) | AQ28: Year 9 | AR28: =TCO_1!K31 -> 1.148301951 | AS28: =TCO_1!K34 -> 0.8607313009 | AT28: =TCO_1!K37 -> 1.318150821 | AU28: =TCO_1!K40 -> 2.289771822
B29: Term of Payment (Years) | C29: 5 | D29: 5 | E29: 5 | F29: 5 | AQ29: Year 10 | AR29: =TCO_1!L31 -> 1.093033189 | AS29: =TCO_1!L34 -> 0.815162139 | AT29: =TCO_1!L37 -> 1.248826875 | AU29: =TCO_1!L40 -> 2.188761513
B30: Interest Rate (%) | C30: 0.15 | D30: 0.15 | E30: 0.15 | F30: 0.1
B31: Equity (%) | C31: 0.15 | D31: 0.15 | E31: 0.15 | F31: 0.15
B32: =VLOOKUP($C$15,Currency!B49:C51,2,0) -> Monthly EMI (₹) | C32: =Financing!B12 -> 1219.375188 | D32: =Financing!C12 -> 1666.451017 | E32: =Financing!D12 -> 2885.358427 | F32: =Financing!E12 -> 1205.186798
B33: =VLOOKUP($C$15,Currency!$B$53:$C$55,2,0) -> Charging Infrastructure Cost (₹) | C33: 0 | D33: 0 | E33: 0
B40: =VLOOKUP($C$15,Currency!B33:C35,2,0) -> Staff Cost per Month (₹) | C40: 0
B41: Lithium-Ion Battery Cost (USD/kWh) | C41: 137
B43: MODEL | C43: e-2W (VRLA) | D43: e-2W (LIB_SB) | E43: e-2W (LIB_BB) | F43: Petrol-2W | AR43: e-2W (VRLA) | AS43: e-2W (LIB_SB) | AT43: e-2W (LIB_BB) | AU43: Petrol-2W
B44: =VLOOKUP($C$15,Currency!B37:D39,2,0) -> Fuel cost (₹/kWh; ₹/L) | C44: 6 | D44: 6 | E44: 6 | F44: 100 | AQ44: Total Fixed cost | AR44: =TCO_1!C10/TCO_1!C9 -> 0.4711855164 | AS44: =TCO_1!D10/TCO_1!D9 -> 0.6223440616 | AT44: =TCO_1!E10/TCO_1!E9 -> 1.059655612 | AU44: =TCO_1!F10/TCO_1!F9 -> 0.4892814599
B45: Capacity of Battery (kWh) | C45: 3.24 | D45: 1.75 | E45: 2.4 | AQ45: Total Variable cost | AR45: =TCO_1!L22/TCO_1!C9 -> 0.621847673 | AS45: =TCO_1!L23/TCO_1!D9 -> 0.1928180774 | AT45: =TCO_1!L24/TCO_1!E9 -> 0.1891712624 | AU45: =TCO_1!L25/TCO_1!F9 -> 1.699480053
B46: Number of Battery Replacements | C46: 10 | D46: 2 | E46: 1 | AQ46: Total TCO | AR46: =SUM(AR44:AR45) -> 1.093033189 | AS46: =SUM(AS44:AS45) -> 0.815162139 | AT46: 1.248826875 | AU46: 2.188761513
B47: Mileage (km/kWh; km/L) | C47: 52 | D47: 57 | E47: 59 | F47: 38
B48: =VLOOKUP($C$15,Currency!B41:C43,2,0) -> Annual Maintenance Cost (₹) | C48: 1250 | D48: 1200 | E48: 1200 | F48: 2546
B54: WORK NOTES
B56: 1. Model Key | AQ56: Cost Components | AR56: e-2W (VRLA) | AS56: e-2W (LIB_SB) | AT56: e-2W (LIB_BB) | AU56: Petrol-2W
B57: VRLA = Lead Acid Battery | AQ57: Fixed | AR57: =Summary!B19 -> 87930.86127 | AS57: =Summary!C19 -> 118515.761 | AT57: =Summary!D19 -> 206010.0056 | AU57: =Summary!E19 -> 91307.8579
B58: LIB_SB = Lithium-Ion Small Battery | AQ58: Maintenance | AR58: =Summary!B23 -> 2530 | AS58: =Summary!C23 -> 2589 | AT58: =Summary!D23 -> 3620 | AU58: =Summary!E23 -> 3920
B59: LIB_BB = Lithium-Ion Big Battery | AQ59: Battery Replacement | AR59: =Summary!B24 -> 23652 | AS59: =Summary!C24 -> 3500.35 | AT59: =Summary!D24 -> 2400.24 | AU59: =Summary!E24 -> 0
AQ60: Fuel | AR60: =Summary!B25 -> 3369.230769 | AS60: =Summary!C25 -> 3073.684211 | AT60: =Summary!D25 -> 2969.491525 | AU60: =Summary!E25 -> 76842.10526
B61: 2. Financial Incentives can be added by referencing Department of Heavy Industry's website | AR61: e-2W (VRLA) | AS61: e-2W (LIB_SB) | AT61: e-2W (LIB_BB) | AU61: Petrol-2W
B62: https://fame2.heavyindustry.gov.in/ModelUnderFame.aspx | AQ62: Fixed Cost | AR62: =AR44/AR46 -> 0.4310807036 | AS62: =AS44/AS46 -> 0.76346046 | AT62: 0.8485208269 | AU62: 0.2235426094
AQ63: Variable Cost | AR63: =AR45/AR46 -> 0.5689192964 | AS63: =AS45/AS46 -> 0.23653954 | AT63: 0.1514791731 | AU63: 0.7764573906
B64: 3. Additional Features like Sensitivity Analysis will be added in the next iteration of the model
AR67: =SUM(AR62:AR66) -> 1 | AS67: =SUM(AS62:AS66) -> 1 | AT67: =SUM(AT62:AT66) -> 1 | AU67: =SUM(AU62:AU66) -> 1
AQ70: Model
AQ71: e-2W (VRLA)
AQ72: e-2W (LIB_SB)
AQ73: e-2W (LIB_BB)
AQ74: Petrol-2W

Sheet Summary
A1: TRAVEL DETAILS
A2: Number of Vehicle | B2: 1
A3: Life of Vehicle (yrs) | B3: 10
A4: Annual drive distance (KM) | B4: ='2-Wheelers TCO Dashboard'!C10 -> 29200
A5: Total Distance Travel (KM) | B5: =B3*B4 -> 292000
A6: LIB Cost (USD/kWh) | B6: ='2-Wheelers TCO Dashboard'!C41 -> 137
A7: USD to INR | B7: 73
A8: VRLA Cost (USD/kWh) | B8: 100
A9: General Inputs | B9: e-2W (VRLA) | C9: e-2W (LIB_SB) | D9: e-2W (LIB_BB) | E9: Petrol-2W
A10: Discount rate (%) | B10: ='2-Wheelers TCO Dashboard'!C25 -> 0.1 | C10: ='2-Wheelers TCO Dashboard'!D25 -> 0.1 | D10: ='2-Wheelers TCO Dashboard'!E25 -> 0.1 | E10: ='2-Wheelers TCO Dashboard'!F25 -> 0.1
A11: Resale rate (%) | B11: ='2-Wheelers TCO Dashboard'!C26 -> 0.1 | C11: ='2-Wheelers TCO Dashboard'!D26 -> 0.15 | D11: ='2-Wheelers TCO Dashboard'!E26 -> 0.2 | E11: ='2-Wheelers TCO Dashboard'!F26 -> 0.1
A13: Capital Cost | B13: e-2W (VRLA) | C13: e-2W (LIB_SB) | D13: e-2W (LIB_BB) | E13: Petrol-2W
A14: Total Vehicle Cost (₹) | B14: ='Capital Cost'!B8 -> 87930.86127 | C14: ='Capital Cost'!C8 -> 118515.761 | D14: ='Capital Cost'!D8 -> 206010.0056 | E14: ='Capital Cost'!E8 -> 91307.8579
A15: Resale Value (₹) | B15: =B14*B11 -> 8793.086127 | C15: =C14*C11 -> 17777.36416 | D15: =D14*D11 -> 41202.00112 | E15: =E14*E11 -> 9130.78579
A16: Total Charging Infrastructure Cost (₹) | B16: ='2-Wheelers TCO Dashboard'!C33 -> 0 | C16: ='2-Wheelers TCO Dashboard'!D33 -> 0 | D16: ='2-Wheelers TCO Dashboard'!E33 -> 0 | E16: ='2-Wheelers TCO Dashboard'!F33 -> 0
A17: Misc. Cost (₹) | B17: 0 | C17: 0 | D17: 0 | E17: 0
A18: Financial Incentive (₹) | B18: ='2-Wheelers TCO Dashboard'!C23 -> 0 | C18: ='2-Wheelers TCO Dashboard'!D23 -> 0 | D18: ='2-Wheelers TCO Dashboard'!E23 -> 0
A19: Total Capital Cost (₹) excl. Resale Value | B19: =(B14+B16+B17)-B18 -> 87930.86127 | C19: =(C14+C16+C17)-C18 -> 118515.761 | D19: 206010.0056 | E19: 91307.8579
A21: Annual Operational Cost | B21: e-2W (VRLA) | C21: e-2W (LIB_SB) | D21: e-2W (LIB_BB) | E21: Petrol-2W
A22: Staff Cost (₹) | B22: ='Operational Cost'!B4 -> 0 | C22: ='Operational Cost'!C4 -> 0 | D22: ='Operational Cost'!D4 -> 0 | E22: ='Operational Cost'!E4 -> 0
A23: Maintenance Cost (₹) | B23: ='Operational Cost'!B18 -> 2530 | C23: ='Operational Cost'!C18 -> 2589 | D23: ='Operational Cost'!D18 -> 3620 | E23: ='Operational Cost'!E18 -> 3920
A24: Battery Replacement Cost (₹)* | B24: ='Operational Cost'!B27/B3 -> 23652 | C24: ='Operational Cost'!C27/B3 -> 3500.35 | D24: ='Operational Cost'!D27/B3 -> 2400.24
A25: Average Fuel Cost (₹) | B25: ='Operational Cost'!B11 -> 3369.230769 | C25: ='Operational Cost'!C11 -> 3073.684211 | D25: ='Operational Cost'!D11 -> 2969.491525 | E25: ='Operational Cost'!E11 -> 76842.10526
A26: Misc. Cost (₹) | B26: 0 | C26: 0 | D26: 0 | E26: 0
A27: Total Operational Cost (₹) | B27: =(SUM(B22:B26)) -> 29551.23077 | C27: =(SUM(C22:C26)) -> 9163.034211 | D27: =(SUM(D22:D26)) -> 8989.731525 | E27: =(SUM(E22:E26)) -> 80762.10526
A29: Total Operational Cost for life of 2W | B29: =B27*$B$3 -> 295512.3077 | C29: =C27*$B$3 -> 91630.34211 | D29: =D27*$B$3 -> 89897.31525 | E29: =E27*$B$3 -> 807621.0526
A30: Average TCO | B30: =TCO_1!C11 -> 1.093033189 | C30: =TCO_1!D11 -> 0.815162139 | D30: =TCO_1!E11 -> 1.248826875 | E30: =TCO_1!F11 -> 2.188761513

Sheet Currency (hidden)
B2: CURRENCY CONVERSION
B4: USD | C4: INR | D4: Conversion
B5: 1 | C5: 74 | D5: =B5*C5 -> 74
B7: EURO | C7: INR | D7: Conversion
B8: 1 | C8: 82 | D8: =B8*C8 -> 82
B16: DROP DOWN | E16: DASHBOARD TITLE | H16: DASHBOARD TITLE 2
B17: INR | C17: =IF(B17='2-Wheelers TCO Dashboard'!$C$15,"Vehicle Purchase Cost (₹)","") -> Vehicle Purchase Cost (₹) | E17: INR | F17: =IF(E17='2-Wheelers TCO Dashboard'!$C$15,"TCO BY MODELS AT YEAR 10 (₹ / km)","") -> TCO BY MODELS AT YEAR 10 (₹ / km) | H17: 1 | I17: =IF('2-Wheelers TCO Dashboard'!C$5=H17,"TCO AT YEAR 1","") -> 
B18: USD | C18: =IF(B18='2-Wheelers TCO Dashboard'!$C$15,"Vehicle Purchase Cost ($)","") ->  | E18: USD | F18: =IF(E18='2-Wheelers TCO Dashboard'!$C$15,"TCO BY MODELS AT YEAR 10 ($ / mi)","") ->  | H18: 2 | I18: =IF('2-Wheelers TCO Dashboard'!C$5=H18,"TCO AT YEAR 2","") -> 
B19: EURO | C19: =IF(B19='2-Wheelers TCO Dashboard'!$C$15,"Vehicle Purchase Cost (€)","") ->  | E19: EURO | F19: =IF(E19='2-Wheelers TCO Dashboard'!$C$15,"TCO BY MODEL AT YEAR 10 (€ / km)","") ->  | H19: 3 | I19: =IF('2-Wheelers TCO Dashboard'!C$5=H19,"TCO AT YEAR 3","") -> 
H20: 4 | I20: =IF('2-Wheelers TCO Dashboard'!C$5=H20,"TCO AT YEAR 4","") -> 
B21: INR | C21: =IF(B21='2-Wheelers TCO Dashboard'!$C$15,"Tax (₹)","") -> Tax (₹) | E21: INR | F21: =IF(E21='2-Wheelers TCO Dashboard'!$C$15,"TCO BREAKDOWN BY COST AT YEAR 10 (₹ / km)","") -> TCO BREAKDOWN BY COST AT YEAR 10 (₹ / km) | H21: 5 | I21: =IF('2-Wheelers TCO Dashboard'!C$5=H21,"TCO AT YEAR 5","") -> TCO AT YEAR 5
B22: USD | C22: =IF(B22='2-Wheelers TCO Dashboard'!$C$15,"Tax ($)","") ->  | E22: USD | F22: =IF(E22='2-Wheelers TCO Dashboard'!$C$15,"TCO BREAKDOWN BY COST AT YEAR 10 ($ / mi)","") ->  | H22: 6 | I22: =IF('2-Wheelers TCO Dashboard'!C$5=H22,"TCO AT YEAR 6","") -> 
B23: EURO | C23: =IF(B23='2-Wheelers TCO Dashboard'!$C$15,"Tax (€)","") ->  | E23: EURO | F23: =IF(E23='2-Wheelers TCO Dashboard'!$C$15,"TCO BREAKDOWN BY COST AT YEAR 10 (€ / km)","") ->  | H23: 7 | I23: =IF('2-Wheelers TCO Dashboard'!C$5=H23,"TCO AT YEAR 7","") -> 
H24: 8 | I24: =IF('2-Wheelers TCO Dashboard'!C$5=H24,"TCO AT YEAR 8","") -> 
B25: INR | C25: =IF(B25='2-Wheelers TCO Dashboard'!$C$15,"Insurance cost (₹)","") -> Insurance cost (₹) | E25: INR | F25: =IF(E25='2-Wheelers TCO Dashboard'!$C$15,"TOTAL COST OF OWNERSHIP OVER YEARS (₹ / km)","") -> TOTAL COST OF OWNERSHIP OVER YEARS (₹ / km) | H25: 9 | I25: =IF('2-Wheelers TCO Dashboard'!C$5=H25,"TCO AT YEAR 9","") -> 
B26: USD | C26: =IF(B26='2-Wheelers TCO Dashboard'!$C$15,"Insurance Cost ($)","") ->  | E26: USD | F26: =IF(E26='2-Wheelers TCO Dashboard'!$C$15,"TOTAL COST OF OWNERSHIP OVER YEARS ($ / mi)","") ->  | H26: 10 | I26: =IF('2-Wheelers TCO Dashboard'!C$5=H26,"TCO AT YEAR 10","") -> 
B27: EURO | C27: =IF(B27='2-Wheelers TCO Dashboard'!$C$15,"Insurance Cost (€)","") ->  | E27: EURO | F27: =IF(E27='2-Wheelers TCO Dashboard'!$C$15,"TOTAL COST OF OWNERSHIP OVER YEARS (€ / km)","") -> 
B29: INR | C29: =IF(B29='2-Wheelers TCO Dashboard'!$C$15,"Financial Incentive (₹)","") -> Financial Incentive (₹)
B30: USD | C30: =IF(B30='2-Wheelers TCO Dashboard'!$C$15,"Financial Incentive ($)","") -> 
B31: EURO | C31: =IF(B31='2-Wheelers TCO Dashboard'!$C$15,"Financial Incentive (€)","") -> 
B33: INR | C33: =IF(B33='2-Wheelers TCO Dashboard'!$C$15,"Staff Cost per Month (₹)","") -> Staff Cost per Month (₹)
B34: USD | C34: =IF(B34='2-Wheelers TCO Dashboard'!$C$15,"Staff Cost per Month ($)","") -> 
B35: EURO | C35: =IF(B35='2-Wheelers TCO Dashboard'!$C$15,"Staff Cost per Month (€)","") -> 
B37: INR | C37: =IF(B37='2-Wheelers TCO Dashboard'!$C$15,"Fuel cost (₹/kWh; ₹/L)","") -> Fuel cost (₹/kWh; ₹/L)
B38: USD | C38: =IF(B38='2-Wheelers TCO Dashboard'!$C$15,"Fuel cost ($/kWh; $/gal)","") -> 
B39: EURO | C39: =IF(B39='2-Wheelers TCO Dashboard'!$C$15,"Fuel cost (€/kWh; €/L)","") -> 
B41: INR | C41: =IF(B41='2-Wheelers TCO Dashboard'!$C$15,"Annual Maintenance Cost (₹)","") -> Annual Maintenance Cost (₹)
B42: USD | C42: =IF(B42='2-Wheelers TCO Dashboard'!$C$15,"Annual Maintenance Cost ($)","") -> 
B43: EURO | C43: =IF(B43='2-Wheelers TCO Dashboard'!$C$15,"Annual Maintenance Cost (€)","") -> 
B45: INR | C45: =IF(B45='2-Wheelers TCO Dashboard'!$C$15,"Financing Component (₹)","") -> Financing Component (₹)
B46: USD | C46: =IF(B46='2-Wheelers TCO Dashboard'!$C$15,"Financing Component ($)","") -> 
B47: EURO | C47: =IF(B47='2-Wheelers TCO Dashboard'!$C$15,"Financing Component (€)","") -> 
B49: INR | C49: =IF(B49='2-Wheelers TCO Dashboard'!$C$15,"Monthly EMI (₹)","") -> Monthly EMI (₹)
B50: USD | C50: =IF(B50='2-Wheelers TCO Dashboard'!$C$15,"Monthly EMI ($)","") -> 
B51: EURO | C51: =IF(B51='2-Wheelers TCO Dashboard'!$C$15,"Monthly EMI (€)","") -> 
B53: INR | C53: =IF(B53='2-Wheelers TCO Dashboard'!$C$15,"Charging Infrastructure Cost (₹)","") -> Charging Infrastructure Cost (₹)
B54: USD | C54: =IF(B54='2-Wheelers TCO Dashboard'!$C$15,"Charging Infrastructure Cost ($)","") -> 
B55: EURO | C55: =IF(B55='2-Wheelers TCO Dashboard'!$C$15,"Charging Infrastructure Cost (€)","") -> 

Sheet Capital Cost (hidden)
A1: Vehicle Cost | B1: e-2W (VRLA) | C1: e-2W (LIB_SB) | D1: e-2W (LIB_BB) | E1: Petrol-2W | G1: USER INPUT
A2: Purchase Cost (₹) | B2: =VLOOKUP('2-Wheelers TCO Dashboard'!$C$15,'Capital Cost'!$A$25:$E$27,2,0) -> 59889 | C2: =VLOOKUP('2-Wheelers TCO Dashboard'!$C$15,'Capital Cost'!$A$25:$E$27,3,0) -> 81998 | D2: =VLOOKUP('2-Wheelers TCO Dashboard'!$C$15,'Capital Cost'!$A$25:$E$27,4,0) -> 142190 | E2: =VLOOKUP('2-Wheelers TCO Dashboard'!$C$15,'Capital Cost'!$A$25:$E$27,5,0) -> 66271 | G2: PREFIXED DATA
A3: Tax (₹) | B3: =VLOOKUP('2-Wheelers TCO Dashboard'!$C$15,'Capital Cost'!$A$30:$E$32,2,0) -> 4192 | C3: =VLOOKUP('2-Wheelers TCO Dashboard'!$C$15,'Capital Cost'!$A$30:$E$32,3,0) -> 4549 | D3: =VLOOKUP('2-Wheelers TCO Dashboard'!$C$15,'Capital Cost'!$A$30:$E$32,4,0) -> 9055 | E3: =VLOOKUP('2-Wheelers TCO Dashboard'!$C$15,'Capital Cost'!$A$30:$E$32,5,0) -> 4638 | G3: CALCULATION
A4: Insurance (₹) | B4: =VLOOKUP('2-Wheelers TCO Dashboard'!$C$15,'Capital Cost'!$A$35:$E$37,2,0) -> 1593 | C4: =VLOOKUP('2-Wheelers TCO Dashboard'!$C$15,'Capital Cost'!$A$35:$E$37,3,0) -> 1680 | D4: =VLOOKUP('2-Wheelers TCO Dashboard'!$C$15,'Capital Cost'!$A$35:$E$37,4,0) -> 2505 | E4: =VLOOKUP('2-Wheelers TCO Dashboard'!$C$15,'Capital Cost'!$A$35:$E$37,5,0) -> 4418 | G4: LINKED CELL
A5: Financing Component (₹) | B5: =Financing!B17 -> 22256.86127 | C5: =Financing!C17 -> 30288.76105 | D5: =Financing!D17 -> 52260.00561 | E5: =Financing!E17 -> 15980.8579
A6: Total Financial Incentive (₹) | B6: =VLOOKUP('2-Wheelers TCO Dashboard'!$C$15,'Capital Cost'!$A$40:$E$42,2,0) -> 0 | C6: 0 | D6: 0 | E6: =VLOOKUP('2-Wheelers TCO Dashboard'!$C$15,'Capital Cost'!$A$40:$E$42,5,0) -> 0
A7: Misc. Cost (₹) | B7: 0 | C7: 0 | D7: 0 | E7: 0
A8: Total Vehicle Cost (₹) | B8: =((B2+B3+B4+B5+B7)-B6) -> 87930.86127 | C8: =((C2+C3+C4+C5+C7)-C6) -> 118515.761 | D8: =((D2+D3+D4+D5+D7)-D6) -> 206010.0056 | E8: =((E2+E3+E4+E5+E7)-E6) -> 91307.8579
A10: Charging Infrastructure Cost | B10: e-2W (VRLA) | C10: e-2W (LIB_SB) | D10: e-2W (LIB_BB) | E10: Petrol-2W
A11: No. of Slow Charger (SC) | B11: ='2-Wheelers TCO Dashboard'!#REF! ->  | C11: ='2-Wheelers TCO Dashboard'!#REF! ->  | D11: ='2-Wheelers TCO Dashboard'!#REF! ->  | E11: ='2-Wheelers TCO Dashboard'!#REF! -> 
A12: Cost of SC per unit (₹) | B12: 0 | C12: 0 | D12: 0 | E12: 0
A13: Total Cost of SC (₹) | B13: =B11*B12 ->  | C13: =C11*C12 ->  | D13: =D11*D12 ->  | E13: 0
A14: No. of Fast Charger (FC) | B14: ='2-Wheelers TCO Dashboard'!#REF! ->  | C14: ='2-Wheelers TCO Dashboard'!#REF! ->  | D14: ='2-Wheelers TCO Dashboard'!#REF! ->  | E14: ='2-Wheelers TCO Dashboard'!#REF! -> 
A15: Cost of FC per unit (₹) | B15: 0 | C15: 0 | D15: 0 | E15: 0
A16: Total Cost of FC (₹) | B16: =B14*B15 ->  | C16: =C14*C15 ->  | D16: =D14*D15 ->  | E16: 0
A17: Installation cost of Charging Infra (₹) | B17: =(B13+B16)*20/100 ->  | C17: =(C13+C16)*20/100 ->  | D17: =(D13+D16)*20/100 ->  | E17: 0
A18: Total incentive for Charging Infra (₹) | B18: 0 | C18: 0 | D18: 0 | E18: 0
A19: Total Cost of Charging Infra (Rs.) | B19: =(B13+B16+B17)-B18 ->  | C19: =(C13+C16+C17)-C18 ->  | D19: =(D13+D16+D17)-D18 ->  | E19: 0
A22: Per Km Capital Cost | B22: =(B8+B19)/Summary!$B$4 ->  | C22: =(C8+C19)/Summary!$B$4 ->  | D22: =(D8+D19)/Summary!$B$4 ->  | E22: =(E8+E19)/Summary!$B$4 -> 3.126981435
A24: PURCHASE COST
A25: INR | B25: =IF('2-Wheelers TCO Dashboard'!$C$15='Capital Cost'!$A$25,'2-Wheelers TCO Dashboard'!C20,) -> 59889 | C25: =IF('2-Wheelers TCO Dashboard'!$C$15='Capital Cost'!$A$25,'2-Wheelers TCO Dashboard'!D20,) -> 81998 | D25: =IF('2-Wheelers TCO Dashboard'!$C$15='Capital Cost'!$A$25,'2-Wheelers TCO Dashboard'!E20,) -> 142190 | E25: =IF('2-Wheelers TCO Dashboard'!$C$15='Capital Cost'!$A$25,'2-Wheelers TCO Dashboard'!F20,) -> 66271
A26: USD | B26: =IF('2-Wheelers TCO Dashboard'!$C$15='Capital Cost'!$A$26,'2-Wheelers TCO Dashboard'!C20*Currency!$C$5,) -> 0 | C26: =IF('2-Wheelers TCO Dashboard'!$C$15='Capital Cost'!$A$26,'2-Wheelers TCO Dashboard'!D20*Currency!$C$5,) -> 0 | D26: =IF('2-Wheelers TCO Dashboard'!$C$15='Capital Cost'!$A$26,'2-Wheelers TCO Dashboard'!E20*Currency!$C$5,) -> 0 | E26: =IF('2-Wheelers TCO Dashboard'!$C$15='Capital Cost'!$A$26,'2-Wheelers TCO Dashboard'!F20*Currency!$C$5,) -> 0
A27: EURO | B27: =IF('2-Wheelers TCO Dashboard'!$C$15='Capital Cost'!$A$27,'2-Wheelers TCO Dashboard'!C20*Currency!$C$8,) -> 0 | C27: =IF('2-Wheelers TCO Dashboard'!$C$15='Capital Cost'!$A$27,'2-Wheelers TCO Dashboard'!D20*Currency!$C$8,) -> 0 | D27: =IF('2-Wheelers TCO Dashboard'!$C$15='Capital Cost'!$A$27,'2-Wheelers TCO Dashboard'!E20*Currency!$C$8,) -> 0 | E27: =IF('2-Wheelers TCO Dashboard'!$C$15='Capital Cost'!$A$27,'2-Wheelers TCO Dashboard'!F20*Currency!$C$8,) -> 0
A29: TAX
A30: INR | B30: =IF('2-Wheelers TCO Dashboard'!$C$15='Capital Cost'!$A$30,'2-Wheelers TCO Dashboard'!C21,) -> 4192 | C30: =IF('2-Wheelers TCO Dashboard'!$C$15='Capital Cost'!$A$30,'2-Wheelers TCO Dashboard'!D21,) -> 4549 | D30: =IF('2-Wheelers TCO Dashboard'!$C$15='Capital Cost'!$A$30,'2-Wheelers TCO Dashboard'!E21,) -> 9055 | E30: =IF('2-Wheelers TCO Dashboard'!$C$15='Capital Cost'!$A$30,'2-Wheelers TCO Dashboard'!F21,) -> 4638
A31: USD | B31: =IF('2-Wheelers TCO Dashboard'!$C$15='Capital Cost'!$A$31,'2-Wheelers TCO Dashboard'!C21*Currency!$C$5,) -> 0 | C31: =IF('2-Wheelers TCO Dashboard'!$C$15='Capital Cost'!$A$31,'2-Wheelers TCO Dashboard'!D21*Currency!$C$5,) -> 0 | D31: =IF('2-Wheelers TCO Dashboard'!$C$15='Capital Cost'!$A$31,'2-Wheelers TCO Dashboard'!E21*Currency!$C$5,) -> 0 | E31: =IF('2-Wheelers TCO Dashboard'!$C$15='Capital Cost'!$A$31,'2-Wheelers TCO Dashboard'!F21*Currency!$C$5,) -> 0
A32: EURO | B32: =IF('2-Wheelers TCO Dashboard'!$C$15='Capital Cost'!$A$32,'2-Wheelers TCO Dashboard'!C21*Currency!$C$8,) -> 0 | C32: =IF('2-Wheelers TCO Dashboard'!$C$15='Capital Cost'!$A$32,'2-Wheelers TCO Dashboard'!D21*Currency!$C$8,) -> 0 | D32: =IF('2-Wheelers TCO Dashboard'!$C$15='Capital Cost'!$A$32,'2-Wheelers TCO Dashboard'!E21*Currency!$C$8,) -> 0 | E32: =IF('2-Wheelers TCO Dashboard'!$C$15='Capital Cost'!$A$32,'2-Wheelers TCO Dashboard'!F21*Currency!$C$8,) -> 0
A34: INSURANCE
A35: INR | B35: =IF('2-Wheelers TCO Dashboard'!$C$15=$A$35,'2-Wheelers TCO Dashboard'!C22,) -> 1593 | C35: =IF('2-Wheelers TCO Dashboard'!$C$15=$A$35,'2-Wheelers TCO Dashboard'!D22,) -> 1680 | D35: =IF('2-Wheelers TCO Dashboard'!$C$15=$A$35,'2-Wheelers TCO Dashboard'!E22,) -> 2505 | E35: =IF('2-Wheelers TCO Dashboard'!$C$15=$A$35,'2-Wheelers TCO Dashboard'!F22,) -> 4418
A36: USD | B36: =IF('2-Wheelers TCO Dashboard'!$C$15='Capital Cost'!$A$36,'2-Wheelers TCO Dashboard'!C22*Currency!$C$5,) -> 0 | C36: =IF('2-Wheelers TCO Dashboard'!$C$15='Capital Cost'!$A$36,'2-Wheelers TCO Dashboard'!D22*Currency!$C$5,) -> 0 | D36: =IF('2-Wheelers TCO Dashboard'!$C$15='Capital Cost'!$A$36,'2-Wheelers TCO Dashboard'!E22*Currency!$C$5,) -> 0 | E36: =IF('2-Wheelers TCO Dashboard'!$C$15='Capital Cost'!$A$36,'2-Wheelers TCO Dashboard'!F22*Currency!$C$5,) -> 0
A37: EURO | B37: =IF('2-Wheelers TCO Dashboard'!$C$15='Capital Cost'!$A$32,'2-Wheelers TCO Dashboard'!C22*Currency!$C$8,) -> 0 | C37: =IF('2-Wheelers TCO Dashboard'!$C$15='Capital Cost'!$A$32,'2-Wheelers TCO Dashboard'!D22*Currency!$C$8,) -> 0 | D37: =IF('2-Wheelers TCO Dashboard'!$C$15='Capital Cost'!$A$32,'2-Wheelers TCO Dashboard'!E22*Currency!$C$8,) -> 0 | E37: =IF('2-Wheelers TCO Dashboard'!$C$15='Capital Cost'!$A$32,'2-Wheelers TCO Dashboard'!F22*Currency!$C$8,) -> 0
A39: INCENTIVE
A40: INR | B40: =IF('2-Wheelers TCO Dashboard'!$C$15=$A$40,'2-Wheelers TCO Dashboard'!C23,) -> 0 | C40: =IF('2-Wheelers TCO Dashboard'!$C$15=$A$40,'2-Wheelers TCO Dashboard'!D23,) -> 0 | D40: =IF('2-Wheelers TCO Dashboard'!$C$15=$A$40,'2-Wheelers TCO Dashboard'!E23,) -> 0 | E40: =IF('2-Wheelers TCO Dashboard'!$C$15=$A$40,'2-Wheelers TCO Dashboard'!F23,) -> 0
A41: USD | B41: =IF('2-Wheelers TCO Dashboard'!$C$15=$A$41,'2-Wheelers TCO Dashboard'!C23*Currency!$C$5,) -> 0 | C41: =IF('2-Wheelers TCO Dashboard'!$C$15=$A$41,'2-Wheelers TCO Dashboard'!D23*Currency!$C$5,) -> 0 | D41: =IF('2-Wheelers TCO Dashboard'!$C$15=$A$41,'2-Wheelers TCO Dashboard'!E23*Currency!$C$5,) -> 0 | E41: =IF('2-Wheelers TCO Dashboard'!$C$15=$A$41,'2-Wheelers TCO Dashboard'!F23*Currency!$C$5,) -> 0
A42: EURO | B42: =IF('2-Wheelers TCO Dashboard'!$C$15=$A$42,'2-Wheelers TCO Dashboard'!C23*Currency!$C$8,) -> 0 | C42: =IF('2-Wheelers TCO Dashboard'!$C$15=$A$42,'2-Wheelers TCO Dashboard'!D23*Currency!$C$8,) -> 0 | D42: =IF('2-Wheelers TCO Dashboard'!$C$15=$A$42,'2-Wheelers TCO Dashboard'!E23*Currency!$C$8,) -> 0 | E42: =IF('2-Wheelers TCO Dashboard'!$C$15=$A$42,'2-Wheelers TCO Dashboard'!F23*Currency!$C$8,) -> 0

Sheet Financing (hidden)
A1: Vehicle Cost | B1: e-2W (VRLA) | C1: e-2W (LIB_SB) | D1: e-2W (LIB_BB) | E1: Petrol-2W
A2: Total Cost of 2W (₹) | B2: ='2-Wheelers TCO Dashboard'!C20-'2-Wheelers TCO Dashboard'!C23 -> 59889 | C2: ='2-Wheelers TCO Dashboard'!D20-'2-Wheelers TCO Dashboard'!D23 -> 81998 | D2: ='2-Wheelers TCO Dashboard'!E20-'2-Wheelers TCO Dashboard'!E23 -> 142190 | E2: ='2-Wheelers TCO Dashboard'!F20 -> 66271
A3: Share of Operator (%) | B3: =100%-B6 -> 0.85 | C3: =100%-C6 -> 0.85 | D3: =100%-D6 -> 0.85 | E3: =100%-E6 -> 0.85
A4: Share of Operator (₹) | B4: =B3*B2 -> 50905.65 | C4: =C3*C2 -> 69698.3 | D4: =D3*D2 -> 120861.5 | E4: =E3*E2 -> 56330.35
A5: Processing Fees | B5: =IF(B8=0,0,IF(B4*0.5%>500,B4*0.5%,500)) -> 500 | C5: =IF(C8=0,0,IF(C4*0.5%>500,C4*0.5%,500)) -> 500 | D5: =IF(D8=0,0,IF(D4*0.5%>500,D4*0.5%,500)) -> 604.3075 | E5: =IF(E8=0,0,IF(E4*0.5%>500,E4*0.5%,500)) -> 500
A6: Equity % | B6: ='2-Wheelers TCO Dashboard'!C31 -> 0.15 | C6: ='2-Wheelers TCO Dashboard'!D31 -> 0.15 | D6: ='2-Wheelers TCO Dashboard'!E31 -> 0.15 | E6: ='2-Wheelers TCO Dashboard'!F31 -> 0.15
A7: Equity (₹) | B7: =(B6*B2) -> 8983.35 | C7: =(C6*C2) -> 12299.7 | D7: =(D6*D2) -> 21328.5 | E7: =(E6*E2) -> 9940.65
A8: Loan amount (₹) | B8: =B4 -> 50905.65 | C8: =C4 -> 69698.3 | D8: =D4 -> 120861.5 | E8: =E4 -> 56330.35
A9: Interest rate (%) | B9: ='2-Wheelers TCO Dashboard'!C30 -> 0.15 | C9: ='2-Wheelers TCO Dashboard'!D30 -> 0.15 | D9: ='2-Wheelers TCO Dashboard'!E30 -> 0.15 | E9: ='2-Wheelers TCO Dashboard'!F30 -> 0.1
A10: Term of payment (yrs) | B10: ='2-Wheelers TCO Dashboard'!C29 -> 5 | C10: ='2-Wheelers TCO Dashboard'!D29 -> 5 | D10: ='2-Wheelers TCO Dashboard'!E29 -> 5 | E10: ='2-Wheelers TCO Dashboard'!F29 -> 5
A11: No of EMI (Yearly) | B11: =B10*12 -> 60 | C11: =C10*12 -> 60 | D11: 60 | E11: 60
A12: Monthly EMI Loan (Rs.) | B12: =((PMT(B9/12,B10*12,-B8))+(B5/B11)) -> 1219.375188 | C12: =((PMT(C9/12,C10*12,-C8))+(C5/C11)) -> 1666.451017 | D12: =((PMT(D9/12,D10*12,-D8))+(D5/D11)) -> 2885.358427 | E12: =((PMT(E9/12,E10*12,-E8))+(E5/E11)) -> 1205.186798
A13: Total interest paid | B13: =(B12*B10*12)-B8 -> 22256.86127 | C13: =(C12*C10*12)-C8 -> 30288.76105 | D13: =(D12*D10*12)-D8 -> 52260.00561 | E13: =(E12*E10*12)-E8 -> 15980.8579
A14: Yearly Interest Paid | B14: =B13/B10 -> 4451.372254 | C14: =C13/C10 -> 6057.75221 | D14: =D13/D10 -> 10452.00112 | E14: =E13/E10 -> 3196.171581
A15: EMI per KM (Rs.) | B15: =B14/Summary!$B$4 -> 0.1524442553 | C15: =C14/Summary!$B$4 -> 0.2074572675 | D15: =D14/Summary!$B$4 -> 0.3579452439 | E15: =E14/Summary!$B$4 -> 0.1094579308
A17: Total Interest Paid | B17: =VLOOKUP('2-Wheelers TCO Dashboard'!$C$15,Financing!$A$22:$E$24,2,0) -> 22256.86127 | C17: =VLOOKUP('2-Wheelers TCO Dashboard'!$C$15,Financing!$A$22:$E$24,3,0) -> 30288.76105 | D17: =VLOOKUP('2-Wheelers TCO Dashboard'!$C$15,Financing!$A$22:$E$24,4,0) -> 52260.00561 | E17: =VLOOKUP('2-Wheelers TCO Dashboard'!$C$15,Financing!$A$22:$E$24,5,0) -> 15980.8579
A18: (Used for Dashboard Calc.)
A21: YEARLY INTEREST
A22: INR | B22: =IF('2-Wheelers TCO Dashboard'!$C$15=Financing!$A$22,Financing!B13,) -> 22256.86127 | C22: =IF('2-Wheelers TCO Dashboard'!$C$15=Financing!$A$22,Financing!C13,) -> 30288.76105 | D22: =IF('2-Wheelers TCO Dashboard'!$C$15=Financing!$A$22,Financing!D13,) -> 52260.00561 | E22: =IF('2-Wheelers TCO Dashboard'!$C$15=Financing!$A$22,Financing!E13,) -> 15980.8579
A23: USD | B23: =IF('2-Wheelers TCO Dashboard'!$C$15=Financing!$A$23,Financing!B13*Currency!$C$5,) -> 0 | C23: =IF('2-Wheelers TCO Dashboard'!$C$15=Financing!$A$23,Financing!C13*Currency!$C$5,) -> 0 | D23: =IF('2-Wheelers TCO Dashboard'!$C$15=Financing!$A$23,Financing!D13*Currency!$C$5,) -> 0 | E23: =IF('2-Wheelers TCO Dashboard'!$C$15=Financing!$A$23,Financing!E13*Currency!$C$5,) -> 0
A24: EURO | B24: =IF('2-Wheelers TCO Dashboard'!$C$15=Financing!$A$24,Financing!B13*Currency!$C$8,) -> 0 | C24: =IF('2-Wheelers TCO Dashboard'!$C$15=Financing!$A$24,Financing!C13*Currency!$C$8,) -> 0 | D24: =IF('2-Wheelers TCO Dashboard'!$C$15=Financing!$A$24,Financing!D13*Currency!$C$8,) -> 0 | E24: =IF('2-Wheelers TCO Dashboard'!$C$15=Financing!$A$24,Financing!E13*Currency!$C$8,) -> 0

Sheet Operational Cost (hidden)
A1: Staff cost | B1: e-2W (VRLA) | C1: e-2W (LIB_SB) | D1: e-2W (LIB_BB) | E1: Petrol-2W | G1: USER INPUT
A2: Staff Cost (₹ / Month) | B2: =VLOOKUP('2-Wheelers TCO Dashboard'!$C$15,'Operational Cost'!$A$35:$B$37,2,0) -> 0 | C2: =VLOOKUP('2-Wheelers TCO Dashboard'!$C$15,'Operational Cost'!$A$35:$B$37,2,0) -> 0 | D2: =VLOOKUP('2-Wheelers TCO Dashboard'!$C$15,'Operational Cost'!$A$35:$B$37,2,0) -> 0 | E2: =VLOOKUP('2-Wheelers TCO Dashboard'!$C$15,'Operational Cost'!$A$35:$B$37,2,0) -> 0 | G2: PREFIXED DATA
A3: Other Support staff cost (₹ / Month) | B3: 0 | C3: 0 | D3: 0 | E3: 0 | G3: CALCULATION
A4: Total Annual Staff Cost (₹) | B4: =((B2+B3)*12) -> 0 | C4: =((C2+C3)*12) -> 0 | D4: =((D2+D3)*12) -> 0 | E4: =((E2+E3)*12) -> 0 | G4: LINKED CELL
A5: Per km Staff Cost | B5: =B4/Summary!$B$4 -> 0 | C5: =C4/Summary!$B$4 -> 0 | D5: =D4/Summary!$B$4 -> 0 | E5: =E4/Summary!$B$4 -> 0
A7: Average Fuel Cost | B7: e-2W (VRLA) | C7: e-2W (LIB_SB) | D7: e-2W (LIB_BB) | E7: Petrol-2W
A8: Fuel cost (₹/kWh; ₹/L or $/gal) | B8: =VLOOKUP('2-Wheelers TCO Dashboard'!$C$15,'Operational Cost'!$A$45:$E$47,2,0) -> 6 | C8: =VLOOKUP('2-Wheelers TCO Dashboard'!$C$15,'Operational Cost'!$A$45:$E$47,3,0) -> 6 | D8: =VLOOKUP('2-Wheelers TCO Dashboard'!$C$15,'Operational Cost'!$A$45:$E$47,4,0) -> 6 | E8: =VLOOKUP('2-Wheelers TCO Dashboard'!$C$15,'Operational Cost'!$A$45:$E$47,5,0) -> 100
A9: Mileage (km/kWh; km/L) | B9: ='2-Wheelers TCO Dashboard'!C47 -> 52 | C9: ='2-Wheelers TCO Dashboard'!D47 -> 57 | D9: ='2-Wheelers TCO Dashboard'!E47 -> 59 | E9: ='2-Wheelers TCO Dashboard'!F47 -> 38
A10: Annual fuel consumption (kWh; L) | B10: =Summary!B4/B9 -> 561.5384615 | C10: =Summary!B4/C9 -> 512.2807018 | D10: =Summary!B4/D9 -> 494.9152542 | E10: =Summary!$B$4/E9 -> 768.4210526
A11: Total Annual Fuel Cost ( ₹ ) | B11: =(B10*B8) -> 3369.230769 | C11: =(C10*C8) -> 3073.684211 | D11: =(D10*D8) -> 2969.491525 | E11: =(E10*E8) -> 76842.10526
A12: Per km Fuel Cost | B12: =B11/Summary!$B$4 -> 0.1153846154 | C12: =C11/Summary!$B$4 -> 0.1052631579 | D12: =D11/Summary!$B$4 -> 0.1016949153 | E12: =E11/Summary!$B$4 -> 2.631578947
A14: Maintenance Cost | B14: e-2W (VRLA) | C14: e-2W (LIB_SB) | D14: e-2W (LIB_BB) | E14: Petrol-2W
A15: Annual Maintenance Cost (₹) | B15: ='2-Wheelers TCO Dashboard'!C48 -> 1250 | C15: ='2-Wheelers TCO Dashboard'!D48 -> 1200 | D15: ='2-Wheelers TCO Dashboard'!E48 -> 1200 | E15: ='2-Wheelers TCO Dashboard'!F48 -> 2546
A16: Other Consumables (₹) | B16: 0 | C16: 0 | D16: 0 | E16: 0
A17: Other Misc. Cost (₹) | B17: 1280 | C17: 1389 | D17: 2420 | E17: 1374
A18: Total Annual Maintenance cost (₹) | B18: =(SUM(B15:B17)) -> 2530 | C18: =(SUM(C15:C17)) -> 2589 | D18: =(SUM(D15:D17)) -> 3620 | E18: =(SUM(E15:E17)) -> 3920
A19: Per km Maintenance Cost | B19: =B18/Summary!$B$4 -> 0.08664383562 | C19: =C18/Summary!$B$4 -> 0.08866438356 | D19: =D18/Summary!$B$4 -> 0.1239726027 | E19: =E18/Summary!$B$4 -> 0.1342465753
A21: Battery Replacement Cost | B21: e-2W (VRLA) | C21: e-2W (LIB_SB) | D21: e-2W (LIB_BB) | E21: Petrol-2W
A22: Number of battery replacements | B22: ='2-Wheelers TCO Dashboard'!C46 -> 10 | C22: ='2-Wheelers TCO Dashboard'!D46 -> 2 | D22: ='2-Wheelers TCO Dashboard'!E46 -> 1 | E22: 0
A23: Capacity of battery (kWh) | B23: ='2-Wheelers TCO Dashboard'!C45 -> 3.24 | C23: ='2-Wheelers TCO Dashboard'!D45 -> 1.75 | D23: ='2-Wheelers TCO Dashboard'!E45 -> 2.4 | E23: 0
A24: Battery Cost (₹ / kWh) | B24: =Summary!B7*Summary!B8 -> 7300 | C24: =Summary!B6*Summary!B7 -> 10001 | D24: =Summary!B6*Summary!B7 -> 10001
A25: Total battery Cost (₹) | B25: =B24*B23 -> 23652 | C25: =C24*C23 -> 17501.75 | D25: =D24*D23 -> 24002.4 | E25: 0
A26: Battery replacement Charge (₹) | B26: 0 | C26: 0 | D26: 0 | E26: 0
A27: Total battery replacement cost (₹) | B27: =((B25+B26)*B22) -> 236520 | C27: =((C25+C26)*C22) -> 35003.5 | D27: =((D25+D26)*D22) -> 24002.4 | E27: 0
A28: Annual Battery Replacement Cost | B28: =B27/Summary!B3 -> 23652 | C28: =C27/Summary!B3 -> 3500.35 | D28: =D27/Summary!B3 -> 2400.24
A29: Per Km Battery Replacement Cost | B29: =B27/Summary!$B$5 -> 0.81 | C29: =C27/Summary!$B$5 -> 0.119875 | D29: =D27/Summary!$B$5 -> 0.0822 | E29: =E27/Summary!$B$5 -> 0
A31: Total Operational Cost | B31: =B27+B18+B11+B4 -> 242419.2308 | C31: =C27+C18+C11+C4 -> 40666.18421 | D31: =D27+D18+D11+D4 -> 30591.89153 | E31: =E27+E18+E11+E4 -> 80762.10526
A32: Per Km Operational Cost | B32: =B29+B19+B12+B5 -> 1.012028451 | C32: =C29+C19+C12+C5 -> 0.3138025415 | D32: =D29+D19+D12+D5 -> 0.307867518 | E32: =E29+E19+E12+E5 -> 2.765825523
A34: STAFF COST
A35: INR | B35: =IF('2-Wheelers TCO Dashboard'!$C$15='Operational Cost'!$A$35,'2-Wheelers TCO Dashboard'!$C$40,) -> 0
A36: USD | B36: =IF('2-Wheelers TCO Dashboard'!$C$15='Operational Cost'!$A$36,'2-Wheelers TCO Dashboard'!$C$40*Currency!$C$5,) -> 0
A37: EURO | B37: =IF('2-Wheelers TCO Dashboard'!$C$15='Operational Cost'!$A$37,'2-Wheelers TCO Dashboard'!$C$40*Currency!$C$8,) -> 0
A39: ANNUAL MAINTENANCE COST
A40: INR | B40: =IF('2-Wheelers TCO Dashboard'!$C$15='Operational Cost'!$A$40,'2-Wheelers TCO Dashboard'!C48,) -> 1250 | C40: =IF('2-Wheelers TCO Dashboard'!$C$15='Operational Cost'!$A$40,'2-Wheelers TCO Dashboard'!D48,) -> 1200 | D40: =IF('2-Wheelers TCO Dashboard'!$C$15='Operational Cost'!$A$40,'2-Wheelers TCO Dashboard'!E48,) -> 1200 | E40: =IF('2-Wheelers TCO Dashboard'!$C$15='Operational Cost'!$A$40,'2-Wheelers TCO Dashboard'!F48,) -> 2546
A41: USD | B41: =IF('2-Wheelers TCO Dashboard'!$C$15='Operational Cost'!$A$41,'2-Wheelers TCO Dashboard'!C48*Currency!$C$5,) -> 0 | C41: =IF('2-Wheelers TCO Dashboard'!$C$15='Operational Cost'!$A$41,'2-Wheelers TCO Dashboard'!D48*Currency!$C$5,) -> 0 | D41: =IF('2-Wheelers TCO Dashboard'!$C$15='Operational Cost'!$A$41,'2-Wheelers TCO Dashboard'!E48*Currency!$C$5,) -> 0 | E41: =IF('2-Wheelers TCO Dashboard'!$C$15='Operational Cost'!$A$41,'2-Wheelers TCO Dashboard'!F48*Currency!$C$5,) -> 0
A42: EURO | B42: =IF('2-Wheelers TCO Dashboard'!$C$15='Operational Cost'!$A$42,'2-Wheelers TCO Dashboard'!C48*Currency!$C$8,) -> 0 | C42: =IF('2-Wheelers TCO Dashboard'!$C$15='Operational Cost'!$A$42,'2-Wheelers TCO Dashboard'!D48*Currency!$C$8,) -> 0 | D42: =IF('2-Wheelers TCO Dashboard'!$C$15='Operational Cost'!$A$42,'2-Wheelers TCO Dashboard'!E48*Currency!$C$8,) -> 0 | E42: =IF('2-Wheelers TCO Dashboard'!$C$15='Operational Cost'!$A$42,'2-Wheelers TCO Dashboard'!F48*Currency!$C$8,) -> 0
A44: AVERAGE FUEL COST
A45: INR | B45: =IF('2-Wheelers TCO Dashboard'!$C$15='Operational Cost'!$A$45,'2-Wheelers TCO Dashboard'!C44,) -> 6 | C45: =IF('2-Wheelers TCO Dashboard'!$C$15='Operational Cost'!$A$45,'2-Wheelers TCO Dashboard'!D44,) -> 6 | D45: =IF('2-Wheelers TCO Dashboard'!$C$15='Operational Cost'!$A$45,'2-Wheelers TCO Dashboard'!E44,) -> 6 | E45: =IF('2-Wheelers TCO Dashboard'!$C$15='Operational Cost'!$A$45,'2-Wheelers TCO Dashboard'!F44,) -> 100
A46: USD | B46: =IF('2-Wheelers TCO Dashboard'!$C$15='Operational Cost'!$A$46,'2-Wheelers TCO Dashboard'!C44*Currency!$C$5,) -> 0 | C46: =IF('2-Wheelers TCO Dashboard'!$C$15='Operational Cost'!$A$46,'2-Wheelers TCO Dashboard'!D44*Currency!$C$5,) -> 0 | D46: =IF('2-Wheelers TCO Dashboard'!$C$15='Operational Cost'!$A$46,'2-Wheelers TCO Dashboard'!E44*Currency!$C$5,) -> 0 | E46: =IF('2-Wheelers TCO Dashboard'!$C$15='Operational Cost'!$A$46,'2-Wheelers TCO Dashboard'!F44*Currency!$C$5/3.78,) -> 0
A47: EURO | B47: =IF('2-Wheelers TCO Dashboard'!$C$15='Operational Cost'!$A$47,'2-Wheelers TCO Dashboard'!C44*Currency!$C$8,) -> 0 | C47: =IF('2-Wheelers TCO Dashboard'!$C$15='Operational Cost'!$A$47,'2-Wheelers TCO Dashboard'!D44*Currency!$C$8,) -> 0 | D47: =IF('2-Wheelers TCO Dashboard'!$C$15='Operational Cost'!$A$47,'2-Wheelers TCO Dashboard'!E44*Currency!$C$8,) -> 0 | E47: =IF('2-Wheelers TCO Dashboard'!$C$15='Operational Cost'!$A$47,'2-Wheelers TCO Dashboard'!F44*Currency!$C$8,) -> 0

Sheet TCO_1 (hidden)
A1: Parameter | B1: Unit | C1: e-2W (VRLA) | D1: e-2W (LIB_SB) | E1: e-2W (LIB_BB) | F1: Petrol-2W
A2: Discount rate value | B2: - | C2: =Summary!B10 -> 0.1 | D2: =Summary!C10 -> 0.1 | E2: =Summary!D10 -> 0.1 | F2: =Summary!E10 -> 0.1
A3: Resale rate value | B3: - | C3: =Summary!B11 -> 0.1 | D3: =Summary!C11 -> 0.15 | E3: =Summary!D11 -> 0.2 | F3: =Summary!E11 -> 0.1
A4: Capital recovery factor (CRF)_N | B4: - | C4: =C2*(1+C2)^Summary!B3 -> 0.259374246 | D4: =D2*(1+D2)^Summary!B3 -> 0.259374246 | E4: =E2*(1+E2)^Summary!B3 -> 0.259374246 | F4: =F2*(1+F2)^Summary!B3 -> 0.259374246
A5: Capital recovery factor (CRF)_D | B5: - | C5: =((1+C2)^Summary!B3)-1 -> 1.59374246 | D5: =(1+D2)^Summary!B3-1 -> 1.59374246 | E5: =(1+E2)^Summary!B3-1 -> 1.59374246 | F5: =(1+F2)^Summary!B3-1 -> 1.59374246
A6: CRF | B6: - | C6: =C4/C5 -> 0.1627453949 | D6: =D4/D5 -> 0.1627453949 | E6: =E4/E5 -> 0.1627453949 | F6: =F4/F5 -> 0.1627453949
A7: Present value factor (PVF) | B7: - | C7: =1/(1+C2)^10 -> 0.3855432894 | D7: =1/(1+D2)^Summary!B3 -> 0.3855432894 | E7: =1/(1+E2)^Summary!B3 -> 0.3855432894 | F7: =1/(1+F2)^Summary!B3 -> 0.3855432894
A8: Residual value (RV) | B8: ₹ | C8: =Summary!B14*C3 -> 8793.086127 | D8: =Summary!C14*D3 -> 17777.36416 | E8: =Summary!D14*E3 -> 41202.00112 | F8: =Summary!E14*F3 -> 9130.78579
A9: Annual Travel Distance | B9: km | C9: =Summary!$B$4 -> 29200 | D9: =Summary!$B$4 -> 29200 | E9: =Summary!$B$4 -> 29200 | F9: =Summary!$B$4 -> 29200
A10: Capex component | B10: ₹ | C10: =((Summary!B19-(C8*C7))*C6) -> 13758.61708 | D10: =(Summary!C19-(D8*D7))*D6 -> 18172.4466 | E10: =(Summary!D19-(E8*E7))*E6 -> 30941.94388 | F10: =(Summary!E19-(F8*F7))*F6 -> 14287.01863
A11: TCO | B11: ₹/km | C11: =(C10+L22)/C9 -> 1.093033189 | D11: =(D10+L23)/D9 -> 0.815162139 | E11: =(E10+L24)/E9 -> 1.248826875 | F11: =(F10+L25)/F9 -> 2.188761513
A13: Opex / year
A14: Vehicle type | B14: Unit | C14: 1 | D14: =C14+1 -> 2 | E14: 3 | F14: 4 | G14: 5 | H14: 6 | I14: 7 | J14: 8 | K14: 9 | L14: 10 | M14: Total
A15: e-2W (VRLA) | B15: ₹ | C15: =Summary!$B$27/(1+$C$2)^C14 -> 26864.75524 | D15: =Summary!$B$27/(1+$C$2)^D14 -> 24422.50477 | E15: =Summary!$B$27/(1+$C$2)^E14 -> 22202.27706 | F15: =Summary!$B$27/(1+$C$2)^F14 -> 20183.88824 | G15: =Summary!$B$27/(1+$C$2)^G14 -> 18348.98931 | H15: =Summary!$B$27/(1+$C$2)^H14 -> 16680.89937 | I15: =Summary!$B$27/(1+$C$2)^I14 -> 15164.45397 | J15: =Summary!$B$27/(1+$C$2)^J14 -> 13785.86725 | K15: =Summary!$B$27/(1+$C$2)^K14 -> 12532.60659 | L15: =Summary!$B$27/(1+$C$2)^L14 -> 11393.27872 | M15: =SUM(C15:L15)/Summary!B3 -> 18157.95205
A16: e-2W (LIB_SB) | B16: ₹ | C16: =Summary!$C$27/(1+$D$2)^C14 -> 8330.0311 | D16: =Summary!$C$27/(1+$D$2)^D14 -> 7572.755546 | E16: =Summary!$C$27/(1+$D$2)^E14 -> 6884.323224 | F16: =Summary!$C$27/(1+$D$2)^F14 -> 6258.475658 | G16: =Summary!$C$27/(1+$D$2)^G14 -> 5689.523325 | H16: =Summary!$C$27/(1+$D$2)^H14 -> 5172.293932 | I16: =Summary!$C$27/(1+$D$2)^I14 -> 4702.085393 | J16: =Summary!$C$27/(1+$D$2)^J14 -> 4274.623084 | K16: =Summary!$C$27/(1+$D$2)^K14 -> 3886.020986 | L16: =Summary!$C$27/(1+$D$2)^L14 -> 3532.746351 | M16: =SUM(C16:L16)/Summary!B3 -> 5630.28786
A17: e-2W (LIB_BB) | B17: ₹ | C17: =Summary!$D$27/(1+$E$2)^C14 -> 8172.483205 | D17: =Summary!$D$27/(1+$E$2)^D14 -> 7429.530186 | E17: =Summary!$D$27/(1+$E$2)^E14 -> 6754.118351 | F17: =Summary!$D$27/(1+$E$2)^F14 -> 6140.107592 | G17: =Summary!$D$27/(1+$E$2)^G14 -> 5581.915993 | H17: =Summary!$D$27/(1+$E$2)^H14 -> 5074.469084 | I17: =Summary!$D$27/(1+$E$2)^I14 -> 4613.153713 | J17: =Summary!$D$27/(1+$E$2)^J14 -> 4193.776103 | K17: =Summary!$D$27/(1+$E$2)^K14 -> 3812.52373 | L17: =Summary!$D$27/(1+$E$2)^L14 -> 3465.930663 | M17: =SUM(C17:L17)/Summary!B3 -> 5523.800862
A18: Petrol-2W | B18: ₹ | C18: =Summary!$E$27/(1+$F$2)^C14 -> 73420.09569 | D18: =Summary!$E$27/(1+$F$2)^D14 -> 66745.54154 | E18: =Summary!$E$27/(1+$F$2)^E14 -> 60677.76504 | F18: =Summary!$E$27/(1+$F$2)^F14 -> 55161.60458 | G18: =Summary!$E$27/(1+$F$2)^G14 -> 50146.91325 | H18: =Summary!$E$27/(1+$F$2)^H14 -> 45588.10296 | I18: =Summary!$E$27/(1+$F$2)^I14 -> 41443.72996 | J18: =Summary!$E$27/(1+$F$2)^J14 -> 37676.11815 | K18: =Summary!$E$27/(1+$F$2)^K14 -> 34251.0165 | L18: =Summary!$E$27/(1+$F$2)^L14 -> 31137.28772 | M18: =SUM(C18:L18)/Summary!B3 -> 49624.81754
A20: Opex Sum
A21: Vehicle type | B21: Unit | C21: 1 | D21: =C21+1 -> 2 | E21: 3 | F21: 4 | G21: 5 | H21: 6 | I21: 7 | J21: 8 | K21: 9 | L21: 10
A22: e-2W (VRLA) | B22: ₹/km | C22: =(1/C21)*SUM($C$15:C15) -> 26864.75524 | D22: =(1/D21)*SUM($C$15:D15) -> 25643.63001 | E22: =(1/E21)*SUM($C$15:E15) -> 24496.51236 | F22: =(1/F21)*SUM($C$15:F15) -> 23418.35633 | G22: =(1/G21)*SUM($C$15:G15) -> 22404.48292 | H22: =(1/H21)*SUM($C$15:H15) -> 21450.55233 | I22: =(1/I21)*SUM($C$15:I15) -> 20552.53828 | J22: =(1/J21)*SUM($C$15:J15) -> 19706.7044 | K22: =(1/K21)*SUM($C$15:K15) -> 18909.58242 | L22: =(1/L21)*SUM($C$15:L15) -> 18157.95205
A23: e-2W (LIB_SB) | B23: ₹/km | C23: =(1/C21)*SUM($C$16:C16) -> 8330.0311 | D23: =(1/D21)*SUM($C$16:D16) -> 7951.393323 | E23: =(1/E21)*SUM($C$16:E16) -> 7595.70329 | F23: =(1/F21)*SUM($C$16:F16) -> 7261.396382 | G23: =(1/G21)*SUM($C$16:G16) -> 6947.021771 | H23: =(1/H21)*SUM($C$16:H16) -> 6651.233797 | I23: =(1/I21)*SUM($C$16:I16) -> 6372.784025 | J23: =(1/J21)*SUM($C$16:J16) -> 6110.513908 | K23: =(1/K21)*SUM($C$16:K16) -> 5863.348028 | L23: =(1/L21)*SUM($C$16:L16) -> 5630.28786
A24: e-2W (LIB_BB) | B24: ₹/km | C24: =(1/C21)*SUM($C$17:C17) -> 8172.483205 | D24: =(1/D21)*SUM($C$17:D17) -> 7801.006696 | E24: =(1/E21)*SUM($C$17:E17) -> 7452.043914 | F24: =(1/F21)*SUM($C$17:F17) -> 7124.059834 | G24: =(1/G21)*SUM($C$17:G17) -> 6815.631065 | H24: =(1/H21)*SUM($C$17:H17) -> 6525.437402 | I24: =(1/I21)*SUM($C$17:I17) -> 6252.254018 | J24: =(1/J21)*SUM($C$17:J17) -> 5994.944278 | K24: =(1/K21)*SUM($C$17:K17) -> 5752.453106 | L24: =(1/L21)*SUM($C$17:L17) -> 5523.800862
A25: Petrol-2W | B25: ₹/km | C25: =(1/C21)*SUM($C$18:C18) -> 73420.09569 | D25: =(1/D21)*SUM($C$18:D18) -> 70082.81862 | E25: =(1/E21)*SUM($C$18:E18) -> 66947.80076 | F25: =(1/F21)*SUM($C$18:F18) -> 64001.25171 | G25: =(1/G21)*SUM($C$18:G18) -> 61230.38402 | H25: =(1/H21)*SUM($C$18:H18) -> 58623.33718 | I25: =(1/I21)*SUM($C$18:I18) -> 56169.10757 | J25: =(1/J21)*SUM($C$18:J18) -> 53857.4839 | K25: =(1/K21)*SUM($C$18:K18) -> 51678.98752 | L25: =(1/L21)*SUM($C$18:L18) -> 49624.81754
A27: TCO / year
A28: Vehicle type | B28: Unit | C28: 1 | D28: =C28+1 -> 2 | E28: 3 | F28: 4 | G28: 5 | H28: 6 | I28: 7 | J28: 8 | K28: 9 | L28: 10 | M28: Average TCO
A29: PVF | B29: - | C29: =1/(1+$C$2)^C28 -> 0.9090909091 | D29: =1/(1+$C$2)^D28 -> 0.826446281 | E29: 0.7513148009 | F29: 0.6830134554 | G29: 0.6209213231 | H29: 0.5644739301 | I29: 0.5131581182 | J29: 0.4665073802 | K29: 0.4240976184 | L29: 0.3855432894
A30: CRF | B30: - | C30: =($C$2*(1+$C$2)^C28)/((1+$C$2)^C28-1) -> 1.1 | D30: =($C$2*(1+$C$2)^D28)/((1+$C$2)^D28-1) -> 0.5761904762 | E30: 0.4021148036 | F30: 0.3154708037 | G30: 0.2637974808 | H30: 0.2296073804 | I30: 0.2054054997 | J30: 0.1874440176 | K30: 0.1736405391 | L30: 0.1627453949
A31: e-2W (VRLA) | B31: ₹/km | C31: =(((Summary!$B$19-($C$8*C29))*C30)+C22)/($C$9) -> 3.93135673 | D31: =(((Summary!$B$19-($C$8*D29))*D30)+D22)/($C$9) -> 2.469909964 | E31: =(((Summary!$B$19-($C$8*E29))*E30)+E22)/($C$9) -> 1.958845612 | F31: =(((Summary!$B$19-($C$8*F29))*F30)+F22)/($C$9) -> 1.687100085 | G31: =(((Summary!$B$19-($C$8*G29))*G30)+G22)/($C$9) -> 1.512333468 | H31: =(((Summary!$B$19-($C$8*H29))*H30)+H22)/($C$9) -> 1.387002677 | I31: =(((Summary!$B$19-($C$8*I29))*I30)+I22)/($C$9) -> 1.290656888 | J31: =(((Summary!$B$19-($C$8*J29))*J30)+J22)/($C$9) -> 1.213010806 | K31: =(((Summary!$B$19-($C$8*K29))*K30)+K22)/($C$9) -> 1.148301951 | L31: =(((Summary!$B$19-($C$8*L29))*L30)+L22)/($C$9) -> 1.093033189 | M31: =SUM(C31:L31)/$L$28 -> 1.769155137
A32: PVF | B32: - | C32: =1/(1+$D$2)^C28 -> 0.9090909091 | D32: =1/(1+$D$2)^D28 -> 0.826446281 | E32: 0.7513148009 | F32: 0.6830134554 | G32: 0.6209213231 | H32: 0.5644739301 | I32: 0.5131581182 | J32: 0.4665073802 | K32: 0.4240976184 | L32: 0.3855432894
A33: CRF | B33: - | C33: =($D$2*(1+$D$2)^C28)/((1+$D$2)^C28-1) -> 1.1 | D33: =($D$2*(1+$D$2)^D28)/((1+$D$2)^D28-1) -> 0.5761904762 | E33: 0.4021148036 | F33: 0.3154708037 | G33: 0.2637974808 | H33: 0.2296073804 | I33: 0.2054054997 | J33: 0.1874440176 | K33: 0.1736405391 | L33: 0.1627453949
A34: e-2W (LIB_SB) | B34: ₹/km | C34: =(((Summary!$C$19-($D$8*C32))*C33)+C23)/($D$9) -> 4.141096031 | D34: =(((Summary!$C$19-($D$8*D32))*D33)+D23)/($D$9) -> 2.321014884 | E34: =(((Summary!$C$19-($D$8*E32))*E33)+E23)/($D$9) -> 1.708282205 | F34: =(((Summary!$C$19-($D$8*F32))*F33)+F23)/($D$9) -> 1.397916296 | G34: =(((Summary!$C$19-($D$8*G32))*G33)+G23)/($D$9) -> 1.208879915 | H34: =(((Summary!$C$19-($D$8*H32))*H33)+H23)/($D$9) -> 1.08079622 | I34: =(((Summary!$C$19-($D$8*I32))*I33)+I23)/($D$9) -> 0.9877651094 | J34: =(((Summary!$C$19-($D$8*J32))*J33)+J23)/($D$9) -> 0.9168171288 | K34: =(((Summary!$C$19-($D$8*K32))*K33)+K23)/($D$9) -> 0.8607313009 | L34: =(((Summary!$C$19-($D$8*L32))*L33)+L23)/($D$9) -> 0.815162139 | M34: =SUM(C34:L34)/$L$28 -> 1.543846123
A35: PVF | B35: - | C35: =1/(1+$E$2)^C28 -> 0.9090909091 | D35: =1/(1+$E$2)^D28 -> 0.826446281 | E35: 0.7513148009 | F35: 0.6830134554 | G35: 0.6209213231 | H35: 0.5644739301 | I35: 0.5131581182 | J35: 0.4665073802 | K35: 0.4240976184 | L35: 0.3855432894
A36: CRF | B36: - | C36: =($E$2*(1+$E$2)^C28)/((1+$E$2)^C28-1) -> 1.1 | D36: =($E$2*(1+$E$2)^D28)/((1+$E$2)^D28-1) -> 0.5761904762 | E36: 0.4021148036 | F36: 0.3154708037 | G36: 0.2637974808 | H36: 0.2296073804 | I36: 0.2054054997 | J36: 0.1874440176 | K36: 0.1736405391 | L36: 0.1627453949
A37: e-2W (LIB_BB) | B37: ₹/km | C37: =(((Summary!$D$19-($E$8*C35))*C36)+C24)/($E$9) -> 6.629503022 | D37: =(((Summary!$D$19-($E$8*D35))*D36)+D24)/($E$9) -> 3.660342787 | E37: =(((Summary!$D$19-($E$8*E35))*E36)+E24)/($E$9) -> 2.665889808 | F37: =(((Summary!$D$19-($E$8*F35))*F36)+F24)/($E$9) -> 2.165629232 | G37: =(((Summary!$D$19-($E$8*G35))*G36)+G24)/($E$9) -> 1.863416698 | H37: =(((Summary!$D$19-($E$8*H35))*H36)+H24)/($E$9) -> 1.66050588 | I37: =(((Summary!$D$19-($E$8*I35))*I36)+I24)/($E$9) -> 1.514552214 | J37: =(((Summary!$D$19-($E$8*J35))*J36)+J24)/($E$9) -> 1.40436366 | K37: =(((Summary!$D$19-($E$8*K35))*K36)+K24)/($E$9) -> 1.318150821 | L37: =(((Summary!$D$19-($E$8*L35))*L36)+L24)/($E$9) -> 1.248826875 | M37: =SUM(C37:L37)/$L$28 -> 2.4131181
A38: PVF | B38: - | C38: =1/(1+$F$2)^C28 -> 0.9090909091 | D38: =1/(1+$F$2)^D28 -> 0.826446281 | E38: 0.7513148009 | F38: 0.6830134554 | G38: 0.6209213231 | H38: 0.5644739301 | I38: 0.5131581182 | J38: 0.4665073802 | K38: 0.4240976184 | L38: 0.3855432894
A39: CRF | B39: - | C39: =($F$2*(1+$F$2)^C28)/((1+$F$2)^C28-1) -> 1.1 | D39: =($F$2*(1+$F$2)^D28)/((1+$F$2)^D28-1) -> 0.5761904762 | E39: 0.4021148036 | F39: 0.3154708037 | G39: 0.2637974808 | H39: 0.2296073804 | I39: 0.2054054997 | J39: 0.1874440176 | K39: 0.1736405391 | L39: 0.1627453949
A40: Petrol-2W | B40: ₹/km | C40: =(((Summary!$E$19-($F$8*C38))*C39)+C25)/($F$9) -> 5.641368274 | D40: =(((Summary!$E$19-($F$8*D38))*D39)+D25)/($F$9) -> 4.052929572 | E40: =(((Summary!$E$19-($F$8*E38))*E39)+E25)/($F$9) -> 3.45566769 | F40: =(((Summary!$E$19-($F$8*F38))*F39)+F25)/($F$9) -> 3.110917715 | G40: =(((Summary!$E$19-($F$8*G38))*G39)+G25)/($F$9) -> 2.870601616 | H40: =(((Summary!$E$19-($F$8*H38))*H39)+H25)/($F$9) -> 2.685098562 | I40: =(((Summary!$E$19-($F$8*I38))*I39)+I25)/($F$9) -> 2.532938655 | J40: =(((Summary!$E$19-($F$8*J38))*J39)+J25)/($F$9) -> 2.403224761 | K40: =(((Summary!$E$19-($F$8*K38))*K39)+K25)/($F$9) -> 2.289771822 | L40: =(((Summary!$E$19-($F$8*L38))*L39)+L25)/($F$9) -> 2.188761513 | M40: =SUM(C40:L40)/$L$28 -> 3.123128018
A42: USER INPUT
A43: PREFIXED DATA
A44: CALCULATION
A45: LINKED CELL

Sheet References (hidden)
B2: Assumption | F2: Source
A3: 1 | B3: Life of Vehicle | F3: Assumed
A4: 2 | B4: Annual driving distance | F4: Base case assumption = 5000 km per year
A5: 3 | B5: Total distance travelled | F5: Assumed
A6: 4 | B6: LIB cost | F6: https://bnef.turtl.co/story/evo2018?teaser=true | K6: BNEF EV Outlook 2018 ($200/kWh)
A7: 5 | B7: Pb-Acid battery cost | F7: https://www.engineering.com/ElectronicsDesign/ElectronicsDesignArticles/ArticleID/17776/NantEnergys-Zinc-Air-Battery-Crosses-the-100kWh-Barrier.aspx
A8: 6 | B8: Discount rate | F8: Assumed
A9: 7 | B9: Resale value | F9: Assumed
A10: 8 | B10: Purchase cost (VRLA) | F10: https://auto.ndtv.com/okinawa-bikes/praise
A11: 9 | B11: Purchase cost (LIB_SB) | F11: https://auto.ndtv.com/okinawa-bikes/ridge-plus
A12: 10 | B12: Purchase cost (LIB_BB) | F12: https://auto.ndtv.com/ather-bikes/450
A13: 11 | B13: Purchase cost (Petrol) | F13: https://auto.ndtv.com/honda-bikes/activa-125
A14: 12 | B14: Tax (VRLA) | F14: https://auto.ndtv.com/okinawa-bikes/praise
A15: 13 | B15: Tax (LIB_SB) | F15: https://auto.ndtv.com/okinawa-bikes/ridge-plus
A16: 14 | B16: Tax (LIB_BB) | F16: https://auto.ndtv.com/ather-bikes/450
A17: 15 | B17: Tax (Petrol) | F17: https://auto.ndtv.com/honda-bikes/activa-125
A18: 16 | B18: Insurance (VRLA) | F18: https://auto.ndtv.com/okinawa-bikes/praise
A19: 17 | B19: Insurance (LIB_SB) | F19: https://auto.ndtv.com/okinawa-bikes/ridge-plus
A20: 18 | B20: Insurance (LIB_BB) | F20: https://auto.ndtv.com/ather-bikes/450
A21: 19 | B21: Insurance (Petrol) | F21: https://auto.ndtv.com/honda-bikes/activa-125
A22: 20 | B22: Fuel cost for e-2W | F22: http://transport.delhi.gov.in/sites/default/files/All-PDF/Electric%20Policy%202018.pdf
A23: 21 | B23: Fuel cost for petrol-2W | F23: https://www.iocl.com/Product_PreviousPrice/PetrolPreviousPriceDynamic.aspx
A24: 22 | B24: Mileage (VRLA) | F24: https://auto.ndtv.com/okinawa-bikes/praise | K24: Battery capacity: 72V/45Ah (=3.24kWh); Range: 170km/charge ; Mileage = 52 km/kWh
A25: 23 | B25: Mileage (LIB_SB) | F25: http://okinawascooters.com/ridge-plus/ | K25: Battery capacity: 1.75kWh; Range = 100km/charge; Mileage = 57 km/kWh
A26: 24 | B26: Mileage (LIB_BB) | F26: https://auto.ndtv.com/ather-bikes/450 | K26: Battery capacity: 2.4kWh; Range = 75km/charge; Mileage = 31 km/kWh
A27: 25 | B27: Mileage (Petrol) | F27: https://auto.ndtv.com/honda-bikes/activa-125 | K27: 59km/L
A28: 26 | B28: Annual maintenance cost (petrol) | F28: https://droom.in/honda-scootermodels/activa125/cost-of-ownership?kms=900 | N28: Tyre change cost+Service cost
A29: 27 | B29: Misc. Cost (VRLA) | F29: https://droom.in/okinawa-scootermodels/ridge-plus/cost-of-ownership?kms=417
A30: 28 | B30: Misc. Cost (LIB_SB) | F30: https://droom.in/okinawa-scootermodels/ridge-plus/cost-of-ownership?kms=417
A31: 29 | B31: Misc. Cost (LIB_BB) | F31: https://droom.in/okinawa-scootermodels/ridge-plus/cost-of-ownership?kms=417
A32: 30 | B32: Misc. Cost (Petrol) | F32: https://droom.in/honda-scootermodels/activa125/cost-of-ownership?kms=900
A33: 31 | B33: No. of battery replacements (VRLA) | F33: For 5K AKT = 2 battery replacement; For 10K AKT = 3 battery replacement (assumption)
A34: 32 | B34: No. of battery replacements (LIB_BB) | F34: 1 battery replacement after 5 years (assumption)
A35: 33 | B35: No. of battery replacements (LIB_SB) | F35: 1 battery replacement after 5 years (assumption)
A36: 34 | B36: Battery capacity (VRLA) | F36: https://auto.ndtv.com/okinawa-bikes/praise
A37: 35 | B37: Battery capacity (LIB_SB) | F37: http://okinawascooters.com/ridge-plus/
A38: 36 | B38: Battery capacity (LIB_BB) | F38: https://auto.ndtv.com/ather-bikes/450
A39: 37 | B39: Financing Cost terms | F39: https://www.bankbazaar.com/two-wheeler-loan.html

Sheet Tech. Specs. (hidden)
B3: Specifications | C3: Okinawa Praise | D3: Okinawa Ridge Plus | E3: Ather 450 | F3: Honda Activa 125
B4: Engine | C4: BLDC Motor | D4: BLDC Motor | E4: BLDC Motor | F4: 124.9 CC
B5: Max Speed | C5: 75 kmph | D5: 55 kmph | E5: 80 kmph
B6: Rated Power | C6: 1000 Watt | D6: 800 Watt | E6: 5.4 kW
B7: Battery Type | C7: VRLA | D7: Li-ion | E7: Li-ion
B8: Battery Capacity | C8: 3.24 kWh | D8: 1.75 kWh | E8: 2.4 kWh Lithium-ion
B9: Battery Range | C9: 170 Km/charge | D9: 100 km/charge | E9: 75 km/charge
B10: Charging Time | C10: 6-8 hrs | D10: 2-3 hrs | E10: 2 - 2.5 hrs
B11: Cycle life (Battery)
